Cogmind - Beta 16 @@@ ROGUE MODE // 2025.10.22 @ 09:30:54 Player: aliser Result: Destroyed by S-27 Virus with Autogun Performance ------------- Evolutions (6) 3000 Regions Visited (14) 2800 Robots Destroyed (142) 710 Value Destroyed (5991) 5991 Prototype IDs (12) 240 Alien Tech Used (0) 0 Bonus (1843) 1843 TOTAL SCORE: 14584 Bonus ------- High Alert Combat Kills 744 Follower Combat Kills 1498 Entered Garrisons 400 Friendly Fire -799 Cogmind --------- Core Integrity 0/1150 Matter 198/300 Energy 64/100 System Corruption 2% Temperature Cool (1) Movement Core (100) Ox1 Location -4/Factory Parts ------- > --- POWER (2) -------- (None) > --- PROPULSION (6) --- (None) > --- UTILITY (8) ------ (None) > --- WEAPON (3) ------- Dispersion Rifle > --- INVENTORY (5) ---- Light Nuclear Core Matter Compressor (250) Enhanced Optical Array Improved Field Recycling Unit (0) Peak State ------------ > --- POWER ------------ Fission Core Antimatter Reactor > --- PROPULSION ------- Heavy Treads Heavy Treads Advanced Medium Treads > --- UTILITY ---------- Advanced Cryofiber Web Huge Storage Unit Advanced Terrain Scanner Advanced Transmission Jammer Damper Plating > --- WEAPON ----------- Disruptor Cannon Advanced Plasma Cannon Neutron Cannon > --- INVENTORY -------- Fission Core Antimatter Reactor Myomer Leg Improved Heat Sink Improved Heat Sink Improved Heat Sink Huge Storage Unit Energy Well Matter Compressor Enhanced Optical Array Improved Signal Interpreter Target Analyzer Improved Particle Charger Weapon Cycler Improved Medium Armor Plating Medium Reflective Plating Long-range Tractor Beam Precision Shock Rifle Pulse Rifle Plasma Rifle Dispersion Rifle Phase Cannon Remote Datajack Power Maul Vibroblade [Rating: 117] Favorites ----------- Power Antimatter Reactor Engine Improved Ion Engine Power Core Light Nuclear Core Reactor Antimatter Reactor Propulsion Advanced Treads Treads Advanced Treads Leg Improved Carbon-fiber Leg Wheel Compact Wheel Flight Unit Improved Cesium-ion Thruster Utility Huge Storage Unit Device Improved Heat Sink Storage Huge Storage Unit Processor Visual Processing Unit Protection Hardened Light Armor Plating Weapon Ion Cannon Energy Gun Precision Shock Rifle Energy Cannon Ion Cannon Ballistic Gun Light Assault Rifle Ballistic Cannon Gauss Cannon Launcher Grenade Launcher Special Weapon Mining Laser Impact Weapon Power Maul Slashing Weapon Vibroblade Build | -11 -10 -10 -10 -8 -8 -8 -8 -8 -7 -6 -6 -6 -5 -4 ------- Run | Yrd Mat Min Sub Mat Gar Mat Sto Gar Fac Fac Was Fac Fac Fac Slots Evolved 12 | . . . . 4 . . . . 2 2 . . 2 2 Power 1 | . . . . . . . . . . 1 . . . . Propulsion 4 | . . . . 2 . . . . . 1 . . . 1 Utility 6 | . . . . 2 . . . . 1 . . . 2 1 Weapon 1 | . . . . . . . . . 1 . . . . . Parts Attached 146 | 6 5 1 10 12 2 1 12 17 14 27 9 4 10 16 Power 16 | 1 . . 2 2 . . 1 3 1 2 2 . . 2 Engine 9 | 1 . . 2 1 . . 1 2 1 1 . . . . Core 4 | . . . . 1 . . . 1 . 1 . . . 1 Reactor 3 | . . . . . . . . . . . 2 . . 1 Propulsion 38 | 2 1 . 3 5 . . 2 7 5 8 2 . 1 2 Treads 25 | 2 . . 2 3 . . 2 6 . 6 2 . 1 1 Leg 2 | . . . . . . . . . 1 . . . . 1 Wheel 7 | . 1 . 1 2 . . . 1 . 2 . . . . Hover . | . . . . . . . . . . . . . . . Flight 4 | . . . . . . . . . 4 . . . . . Utility 50 | 1 1 . 2 3 2 . 3 4 5 10 3 2 5 9 Device 26 | . . . 2 1 2 . 1 1 3 5 2 2 2 5 Storage 7 | 1 1 . . . . . 1 . . 2 . . 1 1 Processor 5 | . . . . 1 . . 1 . 1 . . . . 2 Hackware . | . . . . . . . . . . . . . . . Protection 12 | . . . . 1 . . . 3 1 3 1 . 2 1 Artifact . | . . . . . . . . . . . . . . . Weapon 42 | 2 3 1 3 2 . 1 6 3 3 7 2 2 4 3 Energy Gun 16 | . 2 1 1 . . . 4 1 1 2 . 2 1 1 Energy Cannon 14 | . . . 1 2 . . 1 2 1 2 . . 3 2 Ballistic Gun 4 | 2 . . 1 . . . 1 . . . . . . . Ballistic Cannon 1 | . . . . . . . . . . 1 . . . . Launcher 3 | . 1 . . . . . . . . 2 . . . . Special Weapon 1 | . . . . . . 1 . . . . . . . . Impact Weapon 1 | . . . . . . . . . 1 . . . . . Slashing Weapon 2 | . . . . . . . . . . . 2 . . . Piercing Weapon . | . . . . . . . . . . . . . . . Special Melee Weapon . | . . . . . . . . . . . . . . . Unidentified Prototypes 12 | . . . . . . . 7 . 2 . 1 1 1 . Corrupted Parts 5 | . . . 1 . . . 1 . . 3 . . . . System Corruption 28 | . . . 1 . . . 4 . . 23 . . . . Parts Lost 62 | . . . 10 . . . 6 14 . 7 . . 6 19 Power 10 | . . . 3 . . . . 2 . 1 . . 1 3 Propulsion 22 | . . . 2 . . . 2 9 . 3 . . 2 4 Utility 17 | . . . 2 . . . 2 2 . 1 . . 2 8 Weapon 13 | . . . 3 . . . 2 1 . 2 . . 1 4 Highest Loss Streak 19 | . . . 6 . . . 2 4 . 4 . . 6 19 To Critical Strikes . | . . . . . . . . . . . . . . . Average Backups 20 | 2 8 14 18 18 24 25 24 23 4 20 20 17 20 19 Power 1 | 1 1 1 2 3 1 2 2 2 . . . 1 1 1 Propulsion 3 | . 1 3 4 5 6 3 1 . . 6 3 1 . . Utility 10 | . 1 2 2 1 10 14 15 15 3 10 12 10 12 11 Weapon 4 | 1 4 8 8 8 5 4 3 3 . 3 3 4 4 5 Tool/Special . | . . . . . . . . . . . . . . . Unused Backups 59 | . . . . 5 10 2 1 18 6 3 5 1 . 8 Power 6 | . . . . 1 . . . 2 . . . . . 3 Propulsion 10 | . . . . . 6 . 1 . . 2 1 . . . Utility 31 | . . . . . 2 1 . 13 5 1 4 1 . 4 Weapon 9 | . . . . 4 2 1 . 1 1 . . . . . Tool/Special 3 | . . . . . . . . 2 . . . . . 1 Average Slot Usage (%) 87 | . 98 100 96 95 100 100 98 90 58 90 81 83 67 56 Engine 4 | . 14 14 13 9 . . 7 7 5 7 1 . . . Core 2 | . . . . . 9 9 1 . . . 2 . . . Reactor 2 | . . . . . . . . . . . 8 13 10 4 Treads 24 | . 21 14 13 27 36 36 35 23 . 25 11 16 15 12 Wheel 2 | . 6 14 14 6 . . . 5 . 3 3 . . . Device 11 | . . . 8 10 9 9 9 8 20 15 19 20 10 13 Storage 7 | . 14 14 14 9 9 9 9 8 . 5 6 6 5 4 Processor 4 | . . . . 8 9 9 9 8 5 4 . . . . Protection 7 | . 12 14 3 6 9 9 8 9 5 5 6 6 4 4 Energy Gun 2 | . 8 28 18 6 . . . . . 2 . 5 2 . Energy Cannon 10 | . . . 6 9 17 14 16 14 . 5 6 6 7 12 Peak Build Rating 117 | 6 10 10 15 29 34 34 38 34 46 64 84 92 107 117 Average Rating 49 | 4 9 10 10 23 32 33 35 26 29 53 74 88 101 94 On Entrance 34 | . 6 10 10 14 29 34 32 32 1 42 50 84 92 88 Avg Prop Armor Cover (%) 12 | . 12 11 13 24 . . . 16 6 10 6 . . . Naked Turns 107 | . . . . . . . . 20 14 . . . . 73 Heaviest Build 185 | 12 91 91 96 103 103 103 106 106 23 121 142 142 185 181 Greatest Support 170 | 40 40 16 20 84 84 84 84 82 23 140 140 170 170 170 Greatest Overweight (x) 10 | 1 5 5 5 5 1 1 1 10 1 3 3 1 1 1 Average Overweight (x) 1 | . 3 5 4 3 1 1 1 6 . . 1 . 1 . Largest Inventory Capacity 25 | 8 25 25 25 25 25 25 25 25 5 25 25 25 25 25 Average Capacity 23 | 7 24 25 25 25 25 25 25 24 5 23 25 25 25 23 Most Carried 25 | 7 14 16 25 25 25 25 25 25 5 25 25 25 25 25 Average Carried 21 | 2 8 14 20 21 24 24 24 23 4 20 24 24 23 19 Final Capacity 25 | 8 25 25 25 25 25 25 25 5 5 25 25 25 25 5 Final Carried 25 | 3 14 16 25 15 25 25 24 5 5 23 25 24 18 4 Class Distribution -------------------- 59% | Mutant 23% | Scavenger-Mutant 13% | Scavenger-Tank Dominant Class ---------------- Mutant | -10/Materials Mutant | -10/Mines Mutant | -10/Subcaves Scavenger-Mutant | -8/Materials Mutant | -8/Garrison Mutant | -8/Materials Mutant | -8/Storage Scavenger-Mutant | -8/Garrison Sprinter | -7/Factory Mutant | -6/Factory Scavenger-Mutant | -6/Waste Scavenger-Mutant | -6/Factory Scavenger-Tank | -5/Factory Scavenger-Tank | -4/Factory Resources | -11 -10 -10 -10 -8 -8 -8 -8 -8 -7 -6 -6 -6 -5 -4 ----------- Run | Yrd Mat Min Sub Mat Gar Mat Sto Gar Fac Fac Was Fac Fac Fac Matter Collected 3825 | 228 41 117 132 111 94 81 551 380 . 989 334 117 510 140 Remotely . | . . . . . . . . . . . . . . . Salvage Created 6079 | 20 128 55 294 111 124 . 1410 462 . 1402 579 60 947 487 Parts 289 | 2 20 11 13 3 . . 66 27 . 59 5 2 38 43 Haulers Intercepted 3 | . . . . . . . 2 . . 1 . . . . Recyclers Shooed 7 | . . . . . . . . . . 5 . . 1 1 Parts Field Recycled 8 | . . . . . . . . . . 8 . . . . Retrieved Matter 48 | . . . . . . . . . . 48 . . . . Parts Self-Destructed 1 | . . . 1 . . . . . . . . . . . Prevented . | . . . . . . . . . . . . . . . Parts Restored . | . . . . . . . . . . . . . . . Kills | -11 -10 -10 -10 -8 -8 -8 -8 -8 -7 -6 -6 -6 -5 -4 ------- Run | Yrd Mat Min Sub Mat Gar Mat Sto Gar Fac Fac Was Fac Fac Fac Combat Hostiles Destroyed 102 | . 9 3 6 2 . . 24 15 . 14 1 1 17 10 Melee 5 | . . . . . . . . . . 1 . 1 3 . Guns 12 | . 3 3 4 . . . . . . 1 . . 1 . Cannons 55 | . . . 1 . . . 20 8 . 4 1 . 12 9 AOE 23 | . 6 . . . . . 3 6 . 6 . . 1 1 Classes Destroyed 18 | 1 3 . 2 . . . 6 2 . 1 1 . 2 . Worker 9 | . . . . . . . 2 . . 2 . . 4 1 Builder 13 | . 1 . . . . . 3 . . 6 . . 1 2 Tunneler 2 | 1 . 1 . . . . . . . . . . . . Hauler 3 | . . . . . . . 2 . . 1 . . . . Recycler 5 | . . . . . . . 1 . . 4 . . . . Mechanic 1 | . . . . . . . . . . . . . 1 . Operator 1 | . . . . . . . 1 . . . . . . . Watcher 5 | . 2 . . . . . 2 . . . . . 1 . Swarmer 25 | . 9 3 . . . . 4 . . . . . 5 4 Cutter 2 | . . . . . . . . 2 . . . . . . Grunt 36 | . . . 2 2 . . 14 4 . 7 . 1 6 . Brawler 1 | . . . . . . . . . . . . . 1 . Duelist 3 | . . . . . . . . . . 1 . . 1 1 Sentry 12 | . . . . . . . 5 6 . 1 . . . . Hunter 4 | . . . . . . . 1 1 . . . . 2 . Programmer 14 | . . . . . . . . 2 . 5 . . 2 5 Compactor 1 | . . . . . . . . . . . 1 . . . Subdweller 4 | . . . 4 . . . . . . . . . . . Guerrilla 1 | . . . . . . . . . . . . . 1 . Best Kill Streak 10 | 1 10 3 2 2 . . 5 6 . 4 1 1 9 6 Combat Bots Only 9 | . 9 3 2 2 . . 4 6 . 3 1 1 5 4 Max Kills in Single Turn 4 | 1 3 2 1 1 . . 4 2 . 2 1 1 3 3 Gunslinging 1 | . . 1 . . . . . . . . . . . . Exploded 3 | . 3 . . . . . 1 2 . 2 . . 1 1 Melee 1 | . . . . . . . . . . 1 . 1 1 . Uniques/NPCs Destroyed . | . . . . . . . . . . . . . . . Combat | -11 -10 -10 -10 -8 -8 -8 -8 -8 -7 -6 -6 -6 -5 -4 -------- Run | Yrd Mat Min Sub Mat Gar Mat Sto Gar Fac Fac Was Fac Fac Fac Hostile Shots Fired 1024 | . 31 4 61 10 . 6 177 138 1 144 . 1 179 272 Missed 254 | . 9 . 11 1 . 4 40 30 . 46 . 1 46 66 Hits 770 | . 22 4 50 9 . 2 137 108 1 98 . . 133 206 Melee 28 | . . . . . . . . 3 . 1 . . 8 16 Projectile 742 | . 22 4 50 9 . 2 137 105 1 97 . . 125 190 AOE 4 | . . . . . . . . 2 . . . . . 2 Critical Strikes 40 | . . . 1 1 . . 5 9 . 6 . . 6 12 Damage Taken 13007 | . 171 37 1032 137 27 28 1889 1765 14 1851 . 15 2247 3794 Core 2073 | . 33 . 137 13 18 . 243 268 . 92 . 15 104 1150 Absorbed by Shields . | . . . . . . . . . . . . . . . Ignored by Resistances 1223 | . . . . . . . . . . . . 3 622 598 Regen/Repaired (Parts) 533 | . . . . . . . 228 . . . 85 . 220 . Core Remaining (%) 68 | 100 . . 32 . . . . 1 100 . . 87 89 . Volleys Fired 386 | 5 25 3 30 8 26 9 97 47 . 49 4 1 50 32 Largest 3 | 2 2 2 2 2 2 2 2 2 . 3 2 2 3 3 Hottest 273 | 40 100 100 130 130 120 120 163 120 . 203 125 140 228 273 Shots Fired 758 | 10 47 6 57 16 38 14 188 82 . 95 10 4 122 69 Gun 164 | 10 43 6 48 8 . . . 1 . 30 . 2 11 5 Cannon 550 | . . . 9 8 32 10 183 68 . 53 10 2 111 64 Launcher 37 | . 4 . . . 6 . 2 13 . 12 . . . . Special 7 | . . . . . . 4 3 . . . . . . . Kinetic 108 | 10 37 . 12 . . . . . . 11 4 . 34 . Thermal 542 | . 6 5 42 16 32 14 146 69 . 64 6 2 83 57 Explosive 32 | . 4 . . . 6 . 2 13 . 7 . . . . Electromagnetic 76 | . . 1 3 . . . 40 . . 13 . 2 5 12 Robot Hit Streak 22 | 8 2 3 9 15 3 1 15 22 . 8 2 3 6 13 Robot Miss Streak 7 | 1 6 1 2 1 1 2 3 4 . 5 4 1 7 3 Penetration Max 1 | . . . . . . . . . . . . . 1 . Secondary Targets 3 | . . 2 1 . . . . . . . . . . . Max Gunslinging Chain 1 | . . 1 1 . . . . . . . . . . . Shots Hit Robots 485 | 8 20 4 43 14 8 3 123 50 . 75 26 4 70 37 Core Hits 225 | 3 19 4 10 3 8 2 46 28 . 36 4 3 38 21 Critical Kills 5 | . . . 1 . 1 . 1 1 . 1 . . . . Critical Parts Destroyed 5 | . . . . . . . . . . 4 . . . 1 Critical Strikes 21 | . 1 1 5 . 1 . 1 1 . 7 1 . 2 1 Burn 6 | . 1 1 4 . . . . . . . . . . . Meltdown 4 | . . . . . 1 . 1 1 . 1 . . . . Destroy 2 | . . . 1 . . . . . . . . . . 1 Blast 3 | . . . . . . . . . . 2 . . 1 . Smash 4 | . . . . . . . . . . 4 . . . . Sever 2 | . . . . . . . . . . . 1 . 1 . Melee Attacks 96 | . . . . . . . . . 2 41 23 1 26 3 Impact 44 | . . . . . . . . . 2 41 1 . . . Slashing 52 | . . . . . . . . . . . 22 1 26 3 Piercing . | . . . . . . . . . . . . . . . Sneak Attacks 9 | . . . . . . . . . . 8 . . . 1 Combat Hostiles 1 | . . . . . . . . . . 1 . . . . Follow-up Attacks . | . . . . . . . . . . . . . . . Damage Inflicted 17465 | 67 488 49 396 282 482 117 3390 1727 . 3622 1096 123 3761 1865 Guns 1456 | 67 164 49 314 89 . . . . . 394 . 47 237 95 Cannons 9141 | . . . 82 193 210 117 3043 940 . 1104 264 32 2163 993 Explosions 4133 | . 324 . . . 272 . 347 787 . 1052 . . 680 671 Melee 2735 | . . . . . . . . . . 1072 832 44 681 106 Ramming . | . . . . . . . . . . . . . . . Kinetic 1096 | 67 127 . 93 . . . . . . 177 84 . 548 . Thermal 9066 | . 37 49 283 282 210 117 2310 940 . 1121 180 32 1813 1692 Explosive 2817 | . 324 . . . 272 . 219 787 . 588 . . 627 . Electromagnetic 1751 | . . . 20 . . . 861 . . 664 . 47 92 67 Impact 1160 | . . . . . . . . . . 1072 88 . . . Slashing 1575 | . . . . . . . . . . . 744 44 681 106 Piercing . | . . . . . . . . . . . . . . . Highest Corruption 28 | . 1 1 2 . . . 7 7 . 28 28 28 . 2 Average Corruption 13 | . 1 1 1 . . . 3 7 . 23 28 28 . 1 Corruption Purged . | . . . . . . . . . . . . . . . Corruption Blocked . | . . . . . . . . . . . . . . . Effects 251 | . 2 . 6 . . . 37 42 . 89 33 41 . 1 Message Errors 49 | . . . 1 . . . 5 6 . 19 6 12 . . Matter Fused 66 | . 1 . 4 . . . 13 11 . 20 9 7 . 1 Heat Flow Errors 26 | . . . . . . . 5 7 . 9 1 4 . . Energy Discharges 34 | . . . . . . . 5 7 . 8 8 6 . . Parts Rejected 1 | . . . . . . . . . . 1 . . . . Parts Fused 3 | . . . . . . . 1 . . 1 1 . . . Data Loss (minor) 32 | . 1 . . . . . 2 6 . 13 3 7 . . Data Loss (major) 12 | . . . . . . . 1 1 . 8 1 1 . . Misfires 10 | . . . . . . . 2 . . 3 3 2 . . Alerts 7 | . . . 1 . . . 1 1 . 2 . 2 . . Misdirections 1 | . . . . . . . . . . 1 . . . . Weapon Failures 10 | . . . . . . . 2 3 . 4 1 . . . Overload Shots . | . . . . . . . . . . . . . . . Overflow Damage 1352 | . . . . . 30 . 61 12 . 884 52 . 219 94 Projectiles 212 | . . . . . . . 52 12 . 71 . . 49 28 Explosions 298 | . . . . . 30 . 9 . . 122 . . 137 . Melee 842 | . . . . . . . . . . 691 52 . 33 66 Knockbacks 14 | . . . . . . . . . . 9 1 . 4 . Impact 7 | . . . . . . . . . . 7 . . . . Kinetic 7 | . . . . . . . . . . 2 1 . 4 . Secondary . | . . . . . . . . . . . . . . . Self-Inflicted Damage 479 | . . . . . 28 . 19 67 . 170 . . 125 70 Shots 15 | . . . . . 1 . 1 4 . 6 . . 2 1 Rammed . | . . . . . . . . . . . . . . . Targets Rammed . | . . . . . . . . . . . . . . . Kicked . | . . . . . . . . . . . . . . . Crushed . | . . . . . . . . . . . . . . . Highest Temperature 667 | . 84 84 48 190 173 51 314 554 . 369 227 253 667 446 Average Temperature 125 | . 12 37 19 132 49 21 92 141 . 103 129 90 197 183 Received Heat Transfer 3067 | . . . 273 99 . 9 972 774 9 366 . 9 409 147 Effects 37 | . . . . . . . 1 10 . 2 . . 23 1 Shutdowns 10 | . . . . . . . . . . 1 . . 9 . Energy Bleed 7 | . . . . . . . . 3 . 1 . . 3 . Interference 6 | . . . . . . . . 3 . . . . 3 . Matter Decay 7 | . . . . . . . 1 2 . . . . 3 1 Short Circuit 1 | . . . . . . . . . . . . . 1 . Damage (minor) 1 | . . . . . . . . . . . . . 1 . Damage (major) 4 | . . . . . . . . 2 . . . . 2 . Damage (core) 1 | . . . . . . . . . . . . . 1 . Siege Activations . | . . . . . . . . . . . . . . . Martial Activations . | . . . . . . . . . . . . . . . Shielding Activations . | . . . . . . . . . . . . . . . Robots Disrupted . | . . . . . . . . . . . . . . . Combat Hostiles . | . . . . . . . . . . . . . . . Robots Corrupted 6 | . . . . . . . . . . 6 . . . . Combat Hostiles 1 | . . . . . . . . . . 1 . . . . Parts Fried 17 | . . . . . . . 3 . . 13 1 . . . Impact Corruptions 24 | . . . . . . . . . . 22 2 . . . Robots Melted 7 | . . . 1 2 1 . 1 1 . 1 . . . . Combat Hostiles 7 | . . . 1 2 1 . 1 1 . 1 . . . . Parts Melted 24 | . . . 4 1 2 . 6 5 . 1 . . 4 1 Heat Transferred 11811 | . 185 222 999 518 333 185 3665 1480 . 1593 222 37 1000 1372 Parts Sabotaged . | . . . . . . . . . . . . . . . Parts Stolen . | . . . . . . . . . . . . . . . Parts Stripped . | . . . . . . . . . . . . . . . Power Chain Reactions 4 | . . . . . . . 2 . . . . . 1 1 Alert | -11 -10 -10 -10 -8 -8 -8 -8 -8 -7 -6 -6 -6 -5 -4 ------- Run | Yrd Mat Min Sub Mat Gar Mat Sto Gar Fac Fac Was Fac Fac Fac Maximum Alert Level 4 | . 1 . . . 4 3 1 2 1 1 . 1 4 2 Low Security (%) 48 | 100 83 100 . 100 29 . 55 2 5 94 100 70 43 . Level 1 19 | . 16 . . . 13 . 44 47 94 5 . 29 . . Level 2 18 | . . . . . 13 81 . 50 . . . . 1 100 Level 3 7 | . . . . . 27 18 . . . . . . 23 . Level 4 5 | . . . . . 15 . . . . . . . 31 . Level 5 . | . . . . . . . . . . . . . . . High Security . | . . . . . . . . . . . . . . . Max Security . | . . . . . . . . . . . . . . . Peak Influence 1439 | 5 243 90 . 41 1439 734 345 637 345 216 69 324 1275 615 Initial 701 | . . 20 . . 9 701 237 199 329 116 69 . 123 615 Average 341 | . 116 79 . 14 607 660 197 437 262 104 7 121 625 530 Influence Increases 7117 | 5 283 75 50 55 1430 140 928 668 107 626 2 534 1812 402 Destroy 0b10 Robot/C 2760 | . 180 60 40 40 . 60 520 440 . 280 . 180 760 200 Destroy 0b10 Robot/NC 230 | 5 15 5 . . 5 . 70 . . 65 . 5 45 15 Destroy Leader 492 | . 34 10 10 10 . 20 140 10 . 72 . 40 116 30 Allied During Kill 807 | . . . . . . 29 30 41 . . . 225 482 . Successful Hack 127 | . 16 . . 4 7 13 14 14 30 . . 24 5 . Disable Machine 375 | . 15 . . . . 15 90 . . 90 . 60 60 45 Anti-Garrison Action 1550 | . . . . . 1350 . . 50 . . . . 150 . Destroy Structure 491 | . 23 . . 1 68 3 49 83 2 104 2 . 104 52 Lose Combat Pursuer 285 | . . . . . . . 15 30 75 15 . . 90 60 Influence Decreases 6652 | 5 230 53 125 40 6 1016 1184 348 496 665 201 282 807 1194 Entered New Map 2571 | . . 33 39 . 6 738 326 108 298 122 130 . 129 642 Time Decay 2931 | 5 230 20 76 40 . 278 568 . 198 473 71 222 388 362 Lost Part 530 | . . . 10 . . . 60 140 . 70 . . 60 190 Lost Ally 470 | . . . . . . . 80 100 . . . 60 230 . Purge Threat 150 | . . . . . . . 150 . . . . . . . Squads Dispatched 38 | . . . . 1 . 2 8 . . 9 . 3 9 6 Investigation 7 | . . . . 1 . 2 2 . . . . 1 . 1 Extermination 10 | . . . . . . . . . . 5 . 1 2 2 Reinforcement 10 | . . . . . . . 3 . . 4 . 1 2 . Assault 8 | . . . . . . . . . . . . . 5 3 Garrison 3 | . . . . . . . 3 . . . . . . . Intercept . | . . . . . . . . . . . . . . . Searches Triggered . | . . . . . . . . . . . . . . . Construction Impeded 5 | . . . . . . . 2 . . 2 . . 1 . Haulers Reinforced 1 | . . . . . . . . . . 1 . . . . Active Scanning Responses . | . . . . . . . . . . . . . . . Cargo Convoy Interrupts . | . . . . . . . . . . . . . . . Stealth | -11 -10 -10 -10 -8 -8 -8 -8 -8 -7 -6 -6 -6 -5 -4 --------- Run | Yrd Mat Min Sub Mat Gar Mat Sto Gar Fac Fac Was Fac Fac Fac Distress Signals 9 | . . . . . . . 3 . 1 . . . 4 1 Communications Jammed 13 | . . . . . . . . . . . . . . 13 Distress Signals 13 | . . . . . . . . . . . . . . 13 Times Spotted 206 | . 12 2 7 2 . 5 37 26 8 16 2 4 47 38 Peak Tracking Total 19 | . 3 . 2 2 . 2 4 6 5 4 1 2 10 19 Tactical Retreats 14 | . . . . . . . 1 2 2 1 . . 5 3 Traps | -11 -10 -10 -10 -8 -8 -8 -8 -8 -7 -6 -6 -6 -5 -4 ------- Run | Yrd Mat Min Sub Mat Gar Mat Sto Gar Fac Fac Was Fac Fac Fac Traps Triggered 8 | . 1 . . . . . 2 3 . 1 . . . 1 Indirectly . | . . . . . . . . . . . . . . . Trap Hack Attempts . | . . . . . . . . . . . . . . . Triggered . | . . . . . . . . . . . . . . . Disarmed . | . . . . . . . . . . . . . . . Reprogrammed . | . . . . . . . . . . . . . . . Reused 1 | . . . 1 . . . . . . . . . . . Traps Extracted . | . . . . . . . . . . . . . . . Installed 1 | . . . 1 . . . . . . . . . . . Triggered . | . . . . . . . . . . . . . . . Machines | -11 -10 -10 -10 -8 -8 -8 -8 -8 -7 -6 -6 -6 -5 -4 ---------- Run | Yrd Mat Min Sub Mat Gar Mat Sto Gar Fac Fac Was Fac Fac Fac Machines Disabled 31 | . 1 . . . 5 1 6 . . 6 . 4 5 3 Max in Single Turn 2 | . 1 . . . 1 1 2 . . 2 . . 1 1 Garrison Access 2 | . . . . . . . . . 1 . . . 1 . Garrison Relay 4 | . . . . . 4 . . . . . . . . . Phase Generator 1 | . . . . . 1 . . . . . . . . . Machines Repaired . | . . . . . . . . . . . . . . . Machines Dismantled . | . . . . . . . . . . . . . . . Machines Sabotaged . | . . . . . . . . . . . . . . . Overloaded Fab Kills . | . . . . . . . . . . . . . . . Hacking | -11 -10 -10 -10 -8 -8 -8 -8 -8 -7 -6 -6 -6 -5 -4 --------- Run | Yrd Mat Min Sub Mat Gar Mat Sto Gar Fac Fac Was Fac Fac Fac Machines Accessed 43 | . 4 . . 2 3 5 6 2 5 6 . 7 2 1 Terminals 22 | . 3 . . . 3 3 4 2 2 1 . 3 . 1 Fabricators 4 | . . . . . . . . . 1 1 . . 2 . Repair Stations 5 | . 1 . . 1 . . 1 . . 1 . 1 . . Recycling Units 4 | . . . . . . 1 . . . 2 . 1 . . Scanalyzers 5 | . . . . . . 1 . . 1 1 . 2 . . Garrison Access 3 | . . . . 1 . . 1 . 1 . . . . . Total Hacks 89 | . 7 . . 3 7 14 13 4 10 11 . 14 2 4 Successful 33 | . 1 . . 2 1 4 10 1 4 4 . 4 2 . Failed 55 | . 6 . . 1 6 10 3 3 6 7 . 9 . 4 Catastrophic 11 | . 1 . . . . 1 . 1 1 2 . 2 . 3 Database Lockouts 1 | . . . . . . . . . . . . 1 . . Manual 12 | . . . . 1 . 3 4 . . . . . . 4 Terminals 49 | . 6 . . . 7 7 6 4 6 3 . 6 . 4 Fabricators 5 | . . . . . . . . . 2 1 . . 2 . Repair Stations 14 | . 1 . . 2 . . 6 . . 2 . 3 . . Recycling Units 8 | . . . . . . 3 . . . 4 . 1 . . Scanalyzers 10 | . . . . . . 4 . . 1 1 . 4 . . Garrison Access 3 | . . . . 1 . . 1 . 1 . . . . . Terminal Hacks 12 | . . . . . 1 3 4 1 2 . . 1 . . Record 1 | . . . . . . 1 . . . . . . . . Robot Analysis 1 | . . . . . . . 1 . . . . . . . Open Door 3 | . . . . . 1 . 2 . . . . . . . Branch Access Points 2 | . . . . . . 1 . . 1 . . . . . Terminal Index 1 | . . . . . . 1 . . . . . . . . Unreport Threat 1 | . . . . . . . 1 . . . . . . . Locate Traps 2 | . . . . . . . . . 1 . . 1 . . Garrison Registry 1 | . . . . . . . . 1 . . . . . . Fabricator Hacks 3 | . . . . . . . . . 1 . . . 2 . Network Status 2 | . . . . . . . . . 1 . . . 1 . Build 1 | . . . . . . . . . . . . . 1 . Repair Station Hacks 6 | . 1 . . . . . 4 . . . . 1 . . Scan Component 3 | . . . . . . . 2 . . . . 1 . . Repair 2 | . . . . . . . 2 . . . . . . . Refit 1 | . 1 . . . . . . . . . . . . . Recycling Unit Hacks 5 | . . . . . . . . . . 4 . 1 . . Process 1 | . . . . . . . . . . 1 . . . . Report Inventory 3 | . . . . . . . . . . 2 . 1 . . Retrieve Matter 1 | . . . . . . . . . . 1 . . . . Scanalyzer 2 | . . . . . . 1 . . . . . 1 . . Retrieve Study 2 | . . . . . . 1 . . . . . 1 . . Garrison Access Hacks 3 | . . . . 1 . . 1 . 1 . . . . . Unlock Access 2 | . . . . 1 . . 1 . . . . . . . Seal Access 1 | . . . . . . . . . 1 . . . . . Unauthorized Hacks 2 | . . . . 1 . . 1 . . . . . . . Terminals . | . . . . . . . . . . . . . . . Fabricators . | . . . . . . . . . . . . . . . Repair Stations 2 | . . . . 1 . . 1 . . . . . . . Patch 2 | . . . . 1 . . 1 . . . . . . . Recycling Units . | . . . . . . . . . . . . . . . Scanalyzers . | . . . . . . . . . . . . . . . Garrison Access . | . . . . . . . . . . . . . . . Data Cores Recovered 1 | . . . . . . . . . . . . 1 . . Used . | . . . . . . . . . . . . . . . Hacking Detections 34 | . 3 . . 1 2 5 5 2 4 4 . 6 1 1 Full Trace Events 6 | . . . . . . 2 1 1 . . . 1 . 1 Feedback Events . | . . . . . . . . . . . . . . . Feedback Blocked . | . . . . . . . . . . . . . . . Robot Schematics Acquired . | . . . . . . . . . . . . . . . Robots Built 2 | . . . . . . . . . . . . . 2 . Authchips . | . . . . . . . . . . . . . . . Time 81 | . . . . . . . . . . . . . 81 . Total Robot Build Rating 2 | . . . . . . . . . . . . . 2 . Part Schematics Acquired . | . . . . . . . . . . . . . . . Parts Built . | . . . . . . . . . . . . . . . Authchips . | . . . . . . . . . . . . . . . Time . | . . . . . . . . . . . . . . . Total Part Build Rating . | . . . . . . . . . . . . . . . Part Studies Acquired 2 | . . . . . . 1 . . . . . 1 . . Parts Repaired 2 | . . . . . . . 2 . . . . . . . Time 76 | . . . . . . . 76 . . . . . . . Parts Recycled . | . . . . . . . . . . . . . . . Recycled Matter 1 | . . . . . . . . . . 1 . . . . Retrieved Matter 1 | . . . . . . . . . . 1 . . . . Retrieved Components . | . . . . . . . . . . . . . . . Parts Scanalyzed . | . . . . . . . . . . . . . . . Part Schematics Acquired . | . . . . . . . . . . . . . . . Parts Damaged . | . . . . . . . . . . . . . . . Bothacking | -11 -10 -10 -10 -8 -8 -8 -8 -8 -7 -6 -6 -6 -5 -4 ------------ Run | Yrd Mat Min Sub Mat Gar Mat Sto Gar Fac Fac Was Fac Fac Fac Used RIF Installer . | . . . . . . . . . . . . . . . Robots Hacked . | . . . . . . . . . . . . . . . Non-combat . | . . . . . . . . . . . . . . . Combat . | . . . . . . . . . . . . . . . Robot Hacks Applied . | . . . . . . . . . . . . . . . Relay Couplers Released 17 | . . . . . 14 . . . . . . . 3 . Machine Destruction 17 | . . . . . 14 . . . . . . . 3 . Fabnet Peak Effective % . | . . . . . . . . . . . . . . . Robots Rewired 9 | . . . . . 3 . . 6 . . . . . . Allies Hacked 2 | . . . . . . . . 1 . . . . 1 . Hacks Repelled . | . . . . . . . . . . . . . . . Allies | -11 -10 -10 -10 -8 -8 -8 -8 -8 -7 -6 -6 -6 -5 -4 -------- Run | Yrd Mat Min Sub Mat Gar Mat Sto Gar Fac Fac Was Fac Fac Fac Total Allies 33 | . . . . . 5 . . 6 . . 20 . 2 . Largest Group 20 | . . . . . 5 5 5 6 . . 20 20 18 . Highest-Rated Group 710 | . . . . . 108 108 108 108 . . 710 710 622 . Highest-Rated Ally 46 | . . . . . 31 31 31 18 . . 46 46 46 . Initial Warlord ECA Mod 7 | . . . . . . 7 7 7 6 5 5 5 4 3 Total Orders . | . . . . . . . . . . . . . . . Ally Attacks 272 | . . . . . . 14 29 26 . . 33 54 116 . Total Damage 5822 | . . . . . . 277 736 599 . . 713 764 2733 . Kills 53 | . . . . . . 3 6 7 . . 1 9 27 . Allies Corrupted . | . . . . . . . . . . . . . . . Allies Melted . | . . . . . . . . . . . . . . . Intel | -11 -10 -10 -10 -8 -8 -8 -8 -8 -7 -6 -6 -6 -5 -4 ------- Run | Yrd Mat Min Sub Mat Gar Mat Sto Gar Fac Fac Was Fac Fac Fac Active Infowar (turns) 8555 | . . . 123 146 2198 600 323 . 393 1845 742 786 646 753 Optics 3266 | . . . . 145 2198 600 323 . . . . . . . Sensors 4412 | . . . . . . . . . 393 1845 742 786 646 . Terrain 1107 | . . . . . . . . . . 402 . . . 705 Structural 54 | . . . . 54 . . . . . . . . . . Seismic 123 | . . . 123 . . . . . . . . . . . Jamming 210 | . . . . . . . . . . . . . . 210 Robot Analysis Total 1 | . . . . . . . 1 . . . . . . . Derelict Logs Recovered 1 | . . . 1 . . . . . . . . . . . Drone Launches . | . . . . . . . . . . . . . . . Drone Recoveries . | . . . . . . . . . . . . . . . Exploration | -11 -10 -10 -10 -8 -8 -8 -8 -8 -7 -6 -6 -6 -5 -4 ------------- Run | Yrd Mat Min Sub Mat Gar Mat Sto Gar Fac Fac Was Fac Fac Fac Turns Passed 12801 | 114 555 50 513 151 2198 600 1711 1151 407 1845 742 786 1142 836 Spaces Moved 5322 | 63 201 22 229 50 857 184 366 401 465 962 307 437 378 400 Core 263 | 21 . . . . . . . 41 59 . . . . 142 Treads 3503 | 42 89 . . 13 857 184 366 119 . 532 228 437 378 258 Legs 77 | . . . . . . . . . 77 . . . . . Wheels 930 | . 112 22 229 37 . . . 241 . 210 79 . . . Hover . | . . . . . . . . . . . . . . . Flight 549 | . . . . . . . . . 329 220 . . . . Fastest Speed 26 | 50 160 175 150 130 240 230 228 50 26 26 145 160 200 50 Average Speed 178 | 133 234 175 170 174 240 230 229 214 47 134 205 168 211 138 Slowest Speed 320 | 160 320 175 175 243 240 240 236 320 120 240 240 240 213 208 Overloaded Moves . | . . . . . . . . . . . . . . . Propulsion Burnouts . | . . . . . . . . . . . . . . . Robots Hopped . | . . . . . . . . . . . . . . . Potential Cave-ins 4 | . . . . . . . . . . . . . . 4 Cave-ins Triggered 1 | . . . . . . . . . . . . . . 1 Exploration Rate (%) 29 | 5 51 6 18 6 95 17 44 43 12 18 96 12 14 12 Regions Visited 14 Branch Regions 3 Pre-discovered Areas 1 | . . . 1 . . . . . . . . . . . Known Exits Taken 3 | . . . . 1 . 1 1 . . . . . . . Unknown Exits Taken 7 | 1 1 1 1 . . . . . 1 . . 1 1 . Scrap Searched 1 | . . 1 . . . . . . . . . . . . Spaces Dug 84 | . . . . . 6 4 5 . 2 40 . . 15 12 Terrain Destroyed 430 | . 21 . . . 89 4 38 64 2 123 1 . 61 27 Melee 28 | . . . . . . . . . 2 24 . . 2 . Projectile 97 | . . . . . . 4 20 1 . 12 1 . 36 23 AOE 305 | . 21 . . . 89 . 18 63 . 87 . . 23 4 Terrain Rammed . | . . . . . . . . . . . . . . . Walls Destroyed . | . . . . . . . . . . . . . . . Machines Disabled . | . . . . . . . . . . . . . . . Actions | -11 -10 -10 -10 -8 -8 -8 -8 -8 -7 -6 -6 -6 -5 -4 --------- Run | Yrd Mat Min Sub Mat Gar Mat Sto Gar Fac Fac Was Fac Fac Fac Total 7730 | 84 243 27 293 103 968 340 1039 606 643 1336 375 487 572 614 Wait 1376 | 3 . . 2 8 21 137 531 70 145 201 2 33 87 136 Move 5309 | 62 200 21 228 50 855 183 366 400 464 962 306 436 377 399 Hop . | . . . . . . . . . . . . . . . Pick Up 150 | 8 11 2 18 6 25 5 3 12 6 30 6 2 6 10 Fast Attach 75 | 1 1 . 1 1 . . 16 7 14 15 7 4 2 6 Attach 68 | 5 . . 8 8 . . 5 10 1 10 . 2 5 14 Detach 23 | . . . . 3 . . 3 1 2 3 4 2 2 3 Swap 66 | . 5 1 4 5 6 1 6 6 . 10 3 . 12 7 Drop 115 | . 1 . 1 14 16 5 12 8 9 15 20 6 5 3 Fire 386 | 5 25 3 30 8 26 9 97 47 . 49 4 1 50 32 Melee 96 | . . . . . . . . . 2 41 23 1 26 3 Ram . | . . . . . . . . . . . . . . . Kick . | . . . . . . . . . . . . . . . Crush . | . . . . . . . . . . . . . . . Escape Stasis 1 | . . . . . . . . . . . . . . 1 Rewire 64 | . . . . . 19 . . 45 . . . . . . Trap 1 | . . . 1 . . . . . . . . . . . Miscellaneous . | . . . . . . . . . . . . . . . Route ------- -11/Scrapyard -10/Materials -10/Mines -10/Subcaves -8/Materials -8/Garrison (discovered 3 exits: *Mat x3) -8/Materials (discovered 2 exits: *Sto x2) -8/Storage -8/Garrison (discovered 3 exits: *Fac x3) -7/Factory (discovered 3 exits: *Fac / Low x2) -6/Factory -6/Waste -6/Factory -5/Factory -4/Factory History --------- Turn | Location | Event 9 | -11/Scrapyard | Discovered new exit (range 15) 115 | -11/Scrapyard | Entered Materials 252 | -10/Materials | Destroyed 9 combat bots 307 | -10/Materials | Build established: Mutant 615 | -10/Materials | Discovered new exit (range 11) 670 | -10/Materials | Entered Mines 709 | -10/Mines | Discovered new exit (range 5) 720 | -10/Mines | Entered Subcaves 721 | -10/Subcaves | Approached by a straggling Scientist 1022 | -10/Subcaves | Lost 6 parts (2p1n1u2w) 1048 | -10/Subcaves | Shifting Twisted Machinery released Spk. Treads 1049 | -10/Subcaves | Shifting Twisted Machinery released Piercing Trap 1066 | -10/Subcaves | Core integrity fell below 50% 1194 | -10/Subcaves | Discovered new exit (range 7) 1204 | -10/Subcaves | Learned location of Storage (-8) 1233 | -10/Subcaves | Entered Materials 1233 | -8/Materials | Evolved 4 slots: Propulsion x2, Utility x2 1384 | -8/Materials | Identified exit to Garrison 1384 | -8/Materials | Entered Garrison 1384 | -8/Garrison | Discovered recently destroyed garrison 1974 | -8/Garrison | Discovered new exit (range 11) 2074 | -8/Garrison | Garrison Relay disabled 2229 | -8/Garrison | Phase Generator disabled 2404 | -8/Garrison | Garrison Relay disabled 2626 | -8/Garrison | Discovered new exit (range 11) 2713 | -8/Garrison | Garrison Relay disabled 3054 | -8/Garrison | Discovered new exit (range 7) 3172 | -8/Garrison | Rescued a captive Derelict 3173 | -8/Garrison | Rescued a captive Derelict 3261 | -8/Garrison | Garrison Relay disabled 3349 | -8/Garrison | Attempted to access garrison exit controls, blocked by remote lockdown 3582 | -8/Garrison | Entered Materials 3582 | -8/Materials | Accompanied by 5 allies 3824 | -8/Materials | Identified exit to Storage 4182 | -8/Materials | Entered Storage 4182 | -8/Storage | Accompanied by 5 allies 4242 | -8/Storage | Garrison activated, responded to threat 4306 | -8/Storage | Lost 5 allies 4501 | -8/Storage | Found Prototype Processor 4501 | -8/Storage | Identified Exp. Targeting Computer 5380 | -8/Storage | Repaired Adv. Treads? 5446 | -8/Storage | Repaired Ion Cannon? 5734 | -8/Storage | Garrison activated, responded to threat 5893 | -8/Storage | Identified exit to Garrison 5893 | -8/Storage | Entered Garrison 5895 | -8/Garrison | Core integrity fell below 50% 5927 | -8/Garrison | Lost 3 parts (1n1u1w) 6024 | -8/Garrison | Lost 4 parts (1p2n1u) 6119 | -8/Garrison | Triggered checkpoint 6311 | -8/Garrison | Lost 4 parts (3n1w) 6330 | -8/Garrison | Build established: Scavenger-Mutant 6435 | -8/Garrison | Triggered checkpoint 6459 | -8/Garrison | Triggered checkpoint 6547 | -8/Garrison | Core integrity fell below 20% 6588 | -8/Garrison | Discovered new exit (range 93) 6588 | -8/Garrison | Discovered new exit (range 86) 6588 | -8/Garrison | Discovered new exit (range 82) 6603 | -8/Garrison | Triggered checkpoint 6832 | -8/Garrison | Lost 4 allies 6837 | -8/Garrison | Triggered checkpoint 7024 | -8/Garrison | Released all parts (8) 7044 | -8/Garrison | Entered Factory 7044 | -7/Factory | Evolved 2 slots: Utility x1, Weapon x1 7053 | -7/Factory | Lost 4 parts (1p2n1u) 7062 | -7/Factory | Identified exit to Lower Caves 7427 | -7/Factory | Discovered new exit (range 6) 7451 | -7/Factory | Entered another Factory area 7451 | -6/Factory | Evolved 2 slots: Power x1, Propulsion x1 7501 | -6/Factory | Build established: Sprinter 7568 | -6/Factory | System corruption reached 10% 7837 | -6/Factory | Build established: Mutant 8864 | -6/Factory | Lost 4 parts (1p1n1u1w) 9296 | -6/Factory | Sucked down chute 9296 | -6/Factory | Entered Waste 9297 | -6/Waste | Joined by Warlord forces that had cleared the area 9346 | -6/Waste | A Compactor rumbled back to life 9346 | -6/Waste | Spotted C-40 Crusher 9358 | -6/Waste | Destroyed C-40 Crusher 9526 | -6/Waste | Build established: Scavenger-Mutant 9564 | -6/Waste | Found Damper Plating 9771 | -6/Waste | Found Damper Plating 9956 | -6/Waste | A Compactor rumbled back to life 9956 | -6/Waste | Allies destroyed C-40 Crusher 9997 | -6/Waste | Discovered new exit (range 11) 10038 | -6/Waste | Entered Factory 10038 | -6/Factory | Accompanied by 20 allies 10551 | -6/Factory | Central database locked down 10785 | -6/Factory | Discovered new exit (range 15) 10824 | -6/Factory | Entered another Factory area 10824 | -5/Factory | Accompanied by 16 allies 10824 | -5/Factory | Evolved 2 slots: Utility x2 11122 | -5/Factory | Build established: Scavenger-Tank 11144 | -5/Factory | Fabricated R-06 Scavenger (x2) 11368 | -5/Factory | Lost 4 allies 11424 | -5/Factory | First assault squad dispatched 11552 | -5/Factory | Lost 13 allies 11851 | -5/Factory | Lost 6 parts (1p2n2u1w) 11940 | -5/Factory | Discovered new exit (range 13) 11966 | -5/Factory | Entered another Factory area 11966 | -4/Factory | Evolved 2 slots: Propulsion x1, Utility x1 12216 | -4/Factory | First assault squad dispatched 12499 | -4/Factory | Spotted B-86 Titan 12503 | -4/Factory | Crushed by falling debris 12724 | -4/Factory | Released all parts (5) 12755 | -4/Factory | Core integrity fell below 50% 12757 | -4/Factory | Lost 19 parts (3p4n8u4w) 12782 | -4/Factory | Core integrity fell below 20% 12802 | -4/Factory | Destroyed by S-27 Virus with Autogun Last Messages --------------- 12744_ ALERT: Cargo convoy en route, clear transfer corridor. 12747_ Acquired Imp. Field Recycling Unit. 12749_ Dropped Remote Datajack. 12751_ Dropped Imp. Particle Charger. 12752_ Acquired Lgt. Nuclear Core. 12763_ Connecting with Terminal... 12763_ Current location identified: Factory 12763_ ALERT: Suspicious activity at Terminal F007. Dispatching Investigation squad. 12764_ C-45 Heavy ARC bursts open, deploying its payload. 12764_ G-73 Enforcer unfolds itself. 12764_ B-60 Warrior unfolds itself. 12764_ E-15 Imp unfolds itself. 12764_ K-01 Serf collects debris. 12767_ System corrupted: Matter fused (-5). 12770_ E-15 Imp destroyed. 12771_ O-16 Technician: "IFF HANDSHAKE FAILED. SECURING TERMINAL." [Achievement: Hydra] 12801_ S-27 Virus suffers critical hit (Destroy). 12801_ Destroyed Autogun. Map ----- +----------------------------------------------------+ | ?????????????????????????????????????????????????? | | ?????????????????????????????????????????????????? | | ?????????????????????????????????????????????????? | | ?????????????????????????????????????????????????? | | ?????????????????????????????????????????????????? | | ?????????????????????????????????????????????????? | | ?????????????????????????????????????????????????? | | ?????????????????????????????????????????????????? | | ?????????????????????????????????????????????????? | | ?????????????????????????????????????????????????? | | ?????????????????????????????????????????????????? | | ?????????????????????????????????????????????????? | | ????????????????????????????????? ?????????????? | | ????????????????????????????????? ???????????? | | ????????????????????????????????? #??????????? | | ????????????????????????????????? #??????????? | | ????????????????????????????????? #??????????? | | ????????????????????????????????? #??????????? | | ????????????????????????????????? #??????????? | | ????????????????????????????????# #??????????? | | ???????????????????############## #??????????? | | ???????????????????# # #??????????? | | ???????????????????# s # #??????????? | | ???????????????????# s ss # ####+#### ?? | | ???????????????????# """s"""ss # ?? | | ???????????????????# """@""" s # ? | | ???????????????????# """s""" + ? | | ???????????????????# # ? | | ???????????????????# """ """ # ? | | ???????????????????# """ """ # ########+####??? | | ???????????????????# """ """ # #??????????????? | | ???????????????????# # #??????????????? | | ???????????????????#?? # #??????????????? | | ?????????????????????############/####???????????? | | ?????????????????????# #???????????? | | ?????????????????????# #???????????? | | ?????????????????????# #???????????? | | ?????????????????????# #???????????? | | ?????????????????????# #???????????? | | ?????????????????????# """"""" #???????????? | | ?????????????????????# """"""" #???????????? | | ?????????????????????# """"""" #???????????? | | ?????????????????????# """"""" !#???????????? | | ?????????????????????# #???????????? | | ????????????###+############/#############???????? | | ??????????? ?????? | | ??????????? ?????? | | ?????????? ?????? | | ?????????? ??????? | | ?????????? ??????? | +----------------------------------------------------+ Best States ------------- Heat Dissipation 78 Coolant Potential 50 Energy Generation 37 Energy Capacity 885 Matter Stores 300 Matter Capacity 300 Sight Range 18 Robot Scan Range 16 Terrain Scan Range 20 Terrain Scan Density 10 Jamming Range 16 Base Temperature (-) 200 Armor Coverage 1600 Resistance: TH 15 Resistance: EM 90 Propulsion Shielding 66 Weapon Cycling 15 Evasion (%) 72 Targeting Accuracy 12 Target Analysis 5 Recoil Reduction 5 Particle Charging 20 Item Schematics ----------------- None Robot Schematics ------------------ None Fabricated ------------ R-06 Scavenger | x2 | -5/Factory | Preloaded Repaired ---------- Adv. Treads | 16% | -8/Storage Ion Cannon | 25% | -8/Storage Studied --------- Arm. Treads | -8/Materials | Hacked Hvy. Treads | -6/Factory | Hacked Alien Tech Used ----------------- None Achievements -------------- A Problem For Future Me Construction Begets Destruction DIY Cooler Fitting Room Hydra Item+ Live, Flee, And Rebuild Overwhelming Plot Armor Resistances Are Futile Spot Them First Throw Away The Key We Are Legion Well Done Challenges ------------ None Game ------ Seed RefineryReactionCapacitor Manual? 0 Play Time 02:10:20 Cumulative 78.4 hours Start 2025.10.22 @ 06:56:00 End 2025.10.22 @ 09:30:54 Sessions 1 Manual Loads 0 Difficulty Rogue Special Mode None Game No. 71 Rogue 71 Adventurer 0 Explorer 0 Win Type - Total 0 Types 0/0/0/0/0/0/0/0/0/0 Lore% 33 Gallery% 47 Achievement% 26 Wizard Run 0 Options --------- Layout 0 ASCII 0 Keyboard 0 Movement Mouse Keybinds 0 Fullscreen 1 Font 36/Smallcaps Map View 76x50 Zoom Use 0% Tactical HUD 1 Map Filters NONE Filters NONE Steam 1 RUN: ce9dd207-35cd-4e3d-babd-6450846c5a65